{"text_format":"1","workbook":"xlsx","n_sheets":6,"sheets":["Report","Andon","Activity","Rep_Act","Data","Usuarios"],"not_rendered":{"charts":1,"images":0,"macros":1,"external_links":1,"defined_names":6,"comments":0,"pivot_tables":0},"unopened":[],"bounds":{"document_bytes":16777216,"sheet_cells":100000,"rows_first":2000,"rows_last":500,"rows_between":2000,"halvings":0,"cell_chars":16384,"cell_head_chars":4096},"cells_cut":0,"cells_raw":0,"read":"whole","date_system":"1900"}

{"sheet":"Report","index":0,"n_rows":13,"n_cols":9,"rows_kept":13,"cut":false,"hidden":false,"merged":[[12,1,12,3],[12,5,12,6]]}
[null,{"$f":"Usuarios!A2","v":0},null,null,null,null,null,{"$f":"Andon!B3","v":0},{"$f":"Usuarios!C2","v":"00:00:00"}]
[null,"Status","SOS","P1","P2","EOS",null,"SOS","Qty"]
[null,"Low",{"$f":"COUNTIF(Andon!F3:F47,\"Low\")","v":0},{"$f":"COUNTIF(Andon!H3:H47,\"Low\")","v":0},{"$f":"COUNTIF(Andon!J3:J47,\"Low\")","v":0},{"$f":"COUNTIF(Andon!L3:L47,\"Low\")","v":0},null,"Low",0]
[null,"Escalate",{"$f":"COUNTIF(Andon!F3:F47,\"Escalate\")","v":0},{"$f":"COUNTIF(Andon!H3:H47,\"Escalate\")","v":0},{"$f":"COUNTIF(Andon!J3:J47,\"Escalate\")","v":0},{"$f":"COUNTIF(Andon!L3:L47,\"Escalate\")","v":0},null,"Escalate",0]
[null,"Hi",{"$f":"COUNTIF(Andon!F3:F47,\"Hi\")","v":0},{"$f":"COUNTIF(Andon!H3:H47,\"Hi\")","v":0},{"$f":"COUNTIF(Andon!J3:J47,\"Hi\")","v":0},{"$f":"COUNTIF(Andon!L3:L47,\"Hi\")","v":0},null,"Hi",0]
[null,"PS Pallet",{"$f":"SUM(Andon!M3:M47)","v":0},{"$f":"SUM(Andon!N3:N47)","v":0},{"$f":"SUM(Andon!O3:O47)","v":0},{"$f":"SUM(Andon!P3:P47)","v":0},null,"PS Pallet",0]
[null,"DL Pallet",{"$f":"SUM(Andon!Q3:Q47)","v":0},{"$f":"SUM(Andon!R3:R47)","v":0},{"$f":"SUM(Andon!S3:S47)","v":0},{"$f":"SUM(Andon!T3:T47)","v":0},null,"DL Pallet",0]
[null,"Non-Con Pallet",{"$f":"SUM(Andon!U3:U47)","v":0},{"$f":"SUM(Andon!V3:V47)","v":0},{"$f":"SUM(Andon!W3:W47)","v":0},{"$f":"SUM(Andon!X3:X47)","v":0},null,"Non-Con Pallet",0]
[null,"SAP Pallet",{"$f":"SUM(Andon!Y3:Y47)","v":0},{"$f":"SUM(Andon!Z3:Z47)","v":0},{"$f":"SUM(Andon!AA3:AA47)","v":0},{"$f":"SUM(Andon!AB3:AB47)","v":0},null,"SAP Pallet",0]
[null,"IOL Pallet",{"$f":"SUM(Andon!AC3:AC47)","v":0},{"$f":"SUM(Andon!AD4:AD48)","v":0},{"$f":"SUM(Andon!AE4:AE48)","v":0},{"$f":"SUM(Andon!AF4:AF48)","v":0},null,"IOL Pallet",0]
[null,"GK Totes",{"$f":"SUM(Andon!AG3:AG47)","v":0},{"$f":"SUM(Andon!AH3:AH47)","v":0},{"$f":"SUM(Andon!AI3:AI47)","v":0},{"$f":"SUM(Andon!AJ3:AJ47)","v":0},null,"GK Totes",0]
[]
[null,{"$f":"(\"Inbound Problem Solve: \"&B1)","v":"Inbound Problem Solve: 0"},null,null,"Floor:",{"$f":"Andon!B3","v":0},null,"Date:",{"$f":"I1","v":"00:00:00"}]

{"sheet":"Andon","index":1,"n_rows":47,"n_cols":36,"rows_kept":47,"cut":false,"hidden":true,"merged":[[0,32,0,35],[0,28,0,31],[0,24,0,27],[0,4,0,5],[0,6,0,7],[0,8,0,9],[0,10,0,11],[0,12,0,15],[0,16,0,19],[0,20,0,23]]}
[null,null,null,null,"SOS",null,"P1",null,"P2",null,"EOS",null,"PS",null,null,null,"DL",null,null,null,"NON-CON",null,null,null,"SAP",null,null,null,"IOL",null,null,null,"GK"]
["No","Floor","Side","Station","Qty","Status","Qty","Status","Qty","Status","Qty","Status","SOS","P1","P2","EOS","SOS","P1","P2","EOS","SOS","P1","P2","EOS","SOS","P1","P2","EOS","SOS","P1","P2","EOS","SOS","P1","P2","EOS"]
[null,null,null,null,null,{"$f":"VLOOKUP(E3,Status,2)","v":"Clean"},null,"Clean",null,"Clean",null,"Clean"]
[null,null,null,null,null,"Clean",null,"Clean",null,"Clean",null,"Clean"]
[null,null,null,null,null,"Clean",null,"Clean",null,"Clean",null,"Clean"]
[null,null,null,null,null,"Clean",null,"Clean",null,"Clean",null,"Clean"]
[null,null,null,null,null,"Clean",null,"Clean",null,"Clean",null,"Clean"]
[null,null,null,null,null,"Clean",null,"Clean",null,"Clean",null,"Clean"]
[null,null,null,null,null,"Clean",null,"Clean",null,"Clean",null,"Clean"]
[null,null,null,null,null,"Clean",null,"Clean",null,"Clean",null,"Clean"]
[null,null,null,null,null,"Clean",null,"Clean",null,"Clean",null,"Clean"]
[null,null,null,null,null,"Clean",null,"Clean",null,"Clean",null,"Clean"]
[null,null,null,null,null,"Clean",null,"Clean",null,"Clean",null,"Clean"]
[null,null,null,null,null,"Clean",null,"Clean",null,"Clean",null,"Clean"]
[null,null,null,null,null,"Clean",null,"Clean",null,"Clean",null,"Clean"]
[null,null,null,null,null,"Clean",null,"Clean",null,"Clean",null,"Clean"]
[null,null,null,null,null,"Clean",null,"Clean",null,"Clean",null,"Clean"]
[null,null,null,null,null,"Clean",null,"Clean",null,"Clean",null,"Clean"]
[null,null,null,null,null,"Clean",null,"Clean",null,"Clean",null,"Clean"]
[null,null,null,null,null,"Clean",null,"Clean",null,"Clean",null,"Clean"]
[null,null,null,null,null,"Clean",null,"Clean",null,"Clean",null,"Clean"]
[null,null,null,null,null,"Clean",null,"Clean",null,"Clean",null,"Clean"]
[null,null,null,null,null,"Clean",null,"Clean",null,"Clean",null,"Clean"]
[null,null,null,null,null,"Clean",null,"Clean",null,"Clean",null,"Clean"]
[null,null,null,null,null,"Clean",null,"Clean",null,"Clean",null,"Clean"]
[null,null,null,null,null,"Clean",null,"Clean",null,"Clean",null,"Clean"]
[null,null,null,null,null,"Clean",null,"Clean",null,"Clean",null,"Clean"]
[null,null,null,null,null,"Clean",null,"Clean",null,"Clean",null,"Clean"]
[null,null,null,null,null,"Clean",null,"Clean",null,"Clean",null,"Clean"]
[null,null,null,null,null,"Clean",null,"Clean",null,"Clean",null,"Clean"]
[null,null,null,null,null,"Clean",null,"Clean",null,"Clean",null,"Clean"]
[null,null,null,null,null,"Clean",null,"Clean",null,"Clean",null,"Clean"]
[null,null,null,null,null,"Clean",null,"Clean",null,"Clean",null,"Clean"]
[null,null,null,null,null,"Clean",null,"Clean",null,"Clean",null,"Clean"]
[null,null,null,null,null,"Clean",null,"Clean",null,"Clean",null,"Clean"]
[null,null,null,null,null,"Clean",null,"Clean",null,"Clean",null,"Clean"]
[null,null,null,null,null,"Clean",null,"Clean",null,"Clean",null,"Clean"]
[null,null,null,null,null,"Clean",null,"Clean",null,"Clean",null,"Clean"]
[null,null,null,null,null,"Clean",null,"Clean",null,"Clean",null,"Clean"]
[null,null,null,null,null,"Clean",null,"Clean",null,"Clean",null,"Clean"]
[null,null,null,null,null,"Clean",null,"Clean",null,"Clean",null,"Clean"]
[null,null,null,null,null,"Clean",null,"Clean",null,"Clean",null,"Clean"]
[null,null,null,null,null,"Clean",null,"Clean",null,"Clean",null,"Clean"]
[null,null,null,null,null,"Clean",null,"Clean",null,"Clean",null,"Clean"]
[null,null,null,null,null,"Clean",null,"Clean",null,"Clean",null,"Clean"]
[null,null,null,null,null,"Clean",null,"Clean",null,"Clean",null,"Clean"]
[null,null,null,null,null,"Clean",null,"Clean",null,"Clean",null,"Clean"]

{"sheet":"Activity","index":2,"n_rows":1,"n_cols":16,"rows_kept":1,"cut":false,"hidden":true,"merged":[]}
["Estation","Floor","Period","User","Description IN","Qty IN","Status In","Unit","Hour IN","Description OUT","Qty OUT","Status Out","Unit","End","Time","Fecha"]

{"sheet":"Rep_Act","index":3,"n_rows":5,"n_cols":3,"rows_kept":5,"cut":false,"hidden":true,"merged":[]}
[{"$f":"VLOOKUP(A3,B,4)","v":{"$error":"#N/A"}},{"$f":"VLOOKUP(A3,B,2)","v":{"$error":"#N/A"}},{"$f":"VLOOKUP(A3,B,16)","v":{"$error":"#N/A"}}]
["Estation","Hour In","Hour Out"]
[1348,{"$f":"VLOOKUP(A3,B,9)","v":{"$error":"#N/A"}},{"$f":"VLOOKUP(A3,B,14)","v":{"$error":"#N/A"}}]
["Period","Status IN","Status Out"]
[{"$f":"VLOOKUP(A3,B,3)","v":{"$error":"#N/A"}},{"$f":"VLOOKUP(A3,B,7)","v":{"$error":"#N/A"}},{"$f":"VLOOKUP(A3,B,12)","v":{"$error":"#N/A"}}]

{"sheet":"Data","index":4,"n_rows":40,"n_cols":2,"rows_kept":40,"cut":false,"hidden":true,"merged":[]}
["No","Status"]
[0,"Clean"]
[1,"Low"]
[2,"Low"]
[3,"Low"]
[4,"Low"]
[5,"Low"]
[6,"Escalate"]
[7,"Escalate"]
[8,"Escalate"]
[9,"Escalate"]
[10,"Escalate"]
[11,"Hi"]
[12,"Hi"]
[13,"Hi"]
[14,"Hi"]
[15,"Hi"]
[16,"Hi"]
[17,"Hi"]
[18,"Hi"]
[19,"Hi"]
[20,"Hi"]
[21,"Hi"]
[22,"Hi"]
[23,"Hi"]
[24,"Hi"]
[25,"Hi"]
[26,"Hi"]
[27,"Hi"]
[28,"Hi"]
[29,"Hi"]
[30,"Hi"]
[31,"Hi"]
[32,"Hi"]
[33,"Hi"]
[34,"Hi"]
[35,"Hi"]
[36,"Hi"]
[37,"Hi"]
[38,"Hi"]

{"sheet":"Usuarios","index":5,"n_rows":1,"n_cols":6,"rows_kept":1,"cut":false,"hidden":false,"merged":[]}
["Usuario","Status","Date",null,"Quip","Estation"]